[Event "Live Chess"]
[Site "Chess.com"]
[Date "2023.05.21"]
[Round "-"]
[White "davigator"]
[Black "LiamClery2020"]
[Result "1-0"]
[WhiteElo "2289"]
[BlackElo "2006"]
[TimeControl "300"]
[EndTime "7:48:55 PDT"]
[Termination "davigator won by resignation"]

1. e4 {[%clk 0:04:57.9]} 1... Nf6 {[%clk 0:04:58.9]} 2. Nc3 {[%clk 0:04:54.4]}
2... e5 {[%clk 0:04:57.8]} 3. Nf3 {[%clk 0:04:49.9]} 3... Nc6 {[%clk 0:04:56.1]}
4. Bb5 {[%clk 0:04:48.2]} 4... Bb4 {[%clk 0:04:54.4]} 5. O-O {[%clk 0:04:46.6]}
5... O-O {[%clk 0:04:52.4]} 6. d3 {[%clk 0:04:41.2]} 6... Bxc3 {[%clk 0:04:45]}
7. bxc3 {[%clk 0:04:39.9]} 7... d6 {[%clk 0:04:44.9]} 8. h3 {[%clk 0:04:35.9]}
8... h6 {[%clk 0:04:43.8]} 9. a4 {[%clk 0:04:33.3]} 9... Bd7 {[%clk 0:04:42.2]}
10. a5 {[%clk 0:04:31.8]} 10... a6 {[%clk 0:04:34.9]} 11. Bc4 {[%clk 0:04:30.3]}
11... Ne7 {[%clk 0:04:27.2]} 12. Re1 {[%clk 0:04:27.4]} 12... Ng6 {[%clk
0:04:25.4]} 13. d4 {[%clk 0:04:25.5]} 13... exd4 {[%clk 0:04:23.8]} 14. cxd4
{[%clk 0:04:24]} 14... Re8 {[%clk 0:04:16.9]} 15. e5 {[%clk 0:04:19]} 15... dxe5
{[%clk 0:04:11.9]} 16. dxe5 {[%clk 0:04:18.1]} 16... Nh5 {[%clk 0:04:04.3]} 17.
Qd3 {[%clk 0:04:09]} 17... Be6 {[%clk 0:03:56.7]} 18. Rb1 {[%clk 0:03:55.6]}
18... Ngf4 {[%clk 0:03:51.5]} 19. Qe4 {[%clk 0:03:51.8]} 19... Bxc4 {[%clk
0:03:42.2]} 20. Qxc4 {[%clk 0:03:50.3]} 20... Rb8 {[%clk 0:03:27.3]} 21. Bxf4
{[%clk 0:03:47.8]} 1-0

[Event "Live Chess"]
[Site "Chess.com"]
[Date "2023.05.21"]
[Round "-"]
[White "AttackingSnowLeopard"]
[Black "ramses-IIG"]
[Result "1-0"]
[WhiteElo "2156"]
[BlackElo "870"]
[TimeControl "300"]
[EndTime "7:48:59 PDT"]
[Termination "AttackingSnowLeopard won by resignation"]

1. e4 {[%clk 0:04:58]} 1... d5 {[%clk 0:04:59.9]} 2. e5 {[%clk 0:04:56.7]} 2...
d4 {[%clk 0:04:58.4]} 3. g3 {[%clk 0:04:54.3]} 3... Nc6 {[%clk 0:04:58.3]} 4.
Nf3 {[%clk 0:04:52.6]} 4... Bf5 {[%clk 0:04:53]} 5. d3 {[%clk 0:04:51]} 5... e6
{[%clk 0:04:50.6]} 6. Bg2 {[%clk 0:04:50.5]} 6... Nb4 {[%clk 0:04:44.1]} 7. O-O
{[%clk 0:04:35.6]} 7... Qd7 {[%clk 0:04:21.8]} 8. Nh4 {[%clk 0:04:27.9]} 8... c6
{[%clk 0:04:07.1]} 9. Nxf5 {[%clk 0:04:26.1]} 9... exf5 {[%clk 0:04:07]} 10. Nd2
{[%clk 0:04:24.4]} 10... Bc5 {[%clk 0:03:56.1]} 11. Nc4 {[%clk 0:04:22]} 11...
Ne7 {[%clk 0:03:40.1]} 12. e6 {[%clk 0:04:20]} 12... Qxe6 {[%clk 0:03:23.1]} 13.
Re1 {[%clk 0:04:18.8]} 13... Qf6 {[%clk 0:03:21.5]} 14. Bf4 {[%clk 0:04:10.4]}
14... O-O {[%clk 0:03:16.1]} 15. Ne5 {[%clk 0:04:01.6]} 15... Rfd8 {[%clk
0:02:38.6]} 16. Qd2 {[%clk 0:03:50.5]} 16... h6 {[%clk 0:02:35]} 17. h4 {[%clk
0:03:46.4]} 17... Bd6 {[%clk 0:02:25]} 18. c4 {[%clk 0:03:22.2]} 18... c5 {[%clk
0:02:18.7]} 19. a3 {[%clk 0:03:13.2]} 19... Nbc6 {[%clk 0:02:12.3]} 20. Nxc6
{[%clk 0:03:11.7]} 20... Nxc6 {[%clk 0:02:12.2]} 21. Bd5 {[%clk 0:03:08.4]}
21... Bxf4 {[%clk 0:01:59.3]} 22. Qxf4 {[%clk 0:03:04.7]} 22... Rab8 {[%clk
0:01:39.6]} 23. Re2 {[%clk 0:03:00.1]} 23... Ne7 {[%clk 0:01:37.9]} 24. Rae1
{[%clk 0:02:54.1]} 24... Nxd5 {[%clk 0:01:36.5]} 25. cxd5 {[%clk 0:02:53]} 25...
Rxd5 {[%clk 0:01:34.2]} 26. Qxb8+ {[%clk 0:02:51.5]} 26... Kh7 {[%clk
0:01:32.1]} 27. Re5 {[%clk 0:02:48.1]} 27... Rd8 {[%clk 0:01:18.8]} 28. Qxb7
{[%clk 0:02:44.7]} 28... f4 {[%clk 0:01:10]} 29. Qe4+ {[%clk 0:02:42.1]} 29...
Kg8 {[%clk 0:01:01.6]} 30. Qxf4 {[%clk 0:02:41]} 30... Qxf4 {[%clk 0:00:58.6]}
31. gxf4 {[%clk 0:02:40.9]} 31... Rc8 {[%clk 0:00:52.8]} 32. Re8+ {[%clk
0:02:39.6]} 32... Rxe8 {[%clk 0:00:51.1]} 33. Rxe8+ {[%clk 0:02:39.5]} 33... Kh7
{[%clk 0:00:49.3]} 34. Ra8 {[%clk 0:02:39.4]} 34... Kg6 {[%clk 0:00:46.8]} 35.
Rxa7 {[%clk 0:02:38.1]} 35... Kf5 {[%clk 0:00:46.7]} 36. Rc7 {[%clk 0:02:37.5]}
36... Kxf4 {[%clk 0:00:45.6]} 37. Rxc5 {[%clk 0:02:37.1]} 37... Kf3 {[%clk
0:00:35]} 38. a4 {[%clk 0:02:36.7]} 38... Ke2 {[%clk 0:00:33.7]} 39. a5 {[%clk
0:02:36.6]} 39... Kxd3 {[%clk 0:00:33]} 40. a6 {[%clk 0:02:36.5]} 40... Ke4
{[%clk 0:00:31]} 41. a7 {[%clk 0:02:36.4]} 41... d3 {[%clk 0:00:30.2]} 42. a8=Q+
{[%clk 0:02:36]} 42... Kf4 {[%clk 0:00:26.9]} 43. Rc4+ {[%clk 0:02:33.9]} 43...
Ke5 {[%clk 0:00:23.3]} 44. Qe4+ {[%clk 0:02:31.7]} 1-0

[Event "Live Chess"]
[Site "Chess.com"]
[Date "2023.05.21"]
[Round "-"]
[White "viktorskliarov"]
[Black "ProfPoisson"]
[Result "1-0"]
[WhiteElo "2646"]
[BlackElo "1225"]
[TimeControl "300"]
[EndTime "7:49:02 PDT"]
[Termination "viktorskliarov won - game abandoned"]

1. e4 {[%clk 0:04:55.9]} 1... e5 {[%clk 0:04:58]} 2. Nc3 {[%clk 0:04:52]} 2...
Nf6 {[%clk 0:04:55]} 3. Bc4 {[%clk 0:04:50.7]} 3... c6 {[%clk 0:04:52.4]} 4. Nf3
{[%clk 0:04:46.3]} 4... d5 {[%clk 0:04:49.3]} 5. exd5 {[%clk 0:04:45.5]} 5...
cxd5 {[%clk 0:04:47]} 6. Bb5+ {[%clk 0:04:44.7]} 6... Bd7 {[%clk 0:04:38.4]} 7.
Nxe5 {[%clk 0:04:43.4]} 7... Bd6 {[%clk 0:04:26.2]} 8. Nxd7 {[%clk 0:04:39.7]}
8... Nbxd7 {[%clk 0:04:24.5]} 9. O-O {[%clk 0:04:37.7]} 9... O-O {[%clk
0:04:22]} 10. d4 {[%clk 0:04:35.7]} 10... a6 {[%clk 0:04:15.9]} 11. Bd3 {[%clk
0:04:31.1]} 11... b5 {[%clk 0:04:12.5]} 12. Qf3 {[%clk 0:04:19.9]} 12... Qc7
{[%clk 0:04:08.3]} 13. h3 {[%clk 0:04:16.3]} 13... Rfe8 {[%clk 0:03:59.1]} 14.
Nxd5 {[%clk 0:04:08]} 14... Nxd5 {[%clk 0:03:55.8]} 15. Qxd5 {[%clk 0:04:06.9]}
15... Rad8 {[%clk 0:03:49.8]} 16. Qf3 {[%clk 0:03:58.6]} 16... Nf6 {[%clk
0:03:43.2]} 17. c3 {[%clk 0:03:56.7]} 17... b4 {[%clk 0:03:13.8]} 18. Bg5 {[%clk
0:03:50.1]} 18... Be7 {[%clk 0:03:01.5]} 19. Rae1 {[%clk 0:03:42.7]} 19... bxc3
{[%clk 0:02:58.8]} 20. bxc3 {[%clk 0:03:41]} 20... Qxc3 {[%clk 0:02:55.8]} 21.
Bxf6 {[%clk 0:03:38.8]} 21... Bxf6 {[%clk 0:02:52.9]} 22. Bxh7+ {[%clk
0:03:37.4]} 22... Kxh7 {[%clk 0:02:48.8]} 23. Qxc3 {[%clk 0:03:37.3]} 1-0

[Event "Live Chess"]
[Site "Chess.com"]
[Date "2023.05.21"]
[Round "-"]
[White "EdenHazard8"]
[Black "LL220284LL"]
[Result "0-1"]
[WhiteElo "1924"]
[BlackElo "2225"]
[TimeControl "300"]
[EndTime "7:49:12 PDT"]
[Termination "LL220284LL won by resignation"]

1. e4 {[%clk 0:04:58.4]} 1... c5 {[%clk 0:04:58.5]} 2. Nc3 {[%clk 0:04:57.3]}
2... e6 {[%clk 0:04:56.8]} 3. f4 {[%clk 0:04:57.2]} 3... Nf6 {[%clk 0:04:55.2]}
4. Nf3 {[%clk 0:04:57.1]} 4... d5 {[%clk 0:04:54]} 5. Bb5+ {[%clk 0:04:56.3]}
5... Bd7 {[%clk 0:04:52.9]} 6. Bxd7+ {[%clk 0:04:56.2]} 6... Qxd7 {[%clk
0:04:51.1]} 7. d3 {[%clk 0:04:55.5]} 7... dxe4 {[%clk 0:04:49.5]} 8. dxe4 {[%clk
0:04:55.4]} 8... Qxd1+ {[%clk 0:04:48.9]} 9. Kxd1 {[%clk 0:04:55.3]} 9... Nc6
{[%clk 0:04:47.4]} 10. Ke2 {[%clk 0:04:54.4]} 10... O-O-O {[%clk 0:04:45.9]} 11.
Be3 {[%clk 0:04:53.1]} 11... Nd4+ {[%clk 0:04:44.3]} 12. Kf2 {[%clk 0:04:48.5]}
12... Ng4+ {[%clk 0:04:42.2]} 0-1

[Event "Live Chess"]
[Site "Chess.com"]
[Date "2023.05.21"]
[Round "-"]
[White "stevochess11"]
[Black "garyjc"]
[Result "1-0"]
[WhiteElo "1667"]
[BlackElo "1065"]
[TimeControl "300"]
[EndTime "7:49:17 PDT"]
[Termination "stevochess11 won by resignation"]

1. d4 {[%clk 0:04:57.3]} 1... d5 {[%clk 0:04:56.8]} 2. Nf3 {[%clk 0:04:54.2]}
2... Nf6 {[%clk 0:04:54]} 3. e3 {[%clk 0:04:50.8]} 3... Nc6 {[%clk 0:04:49.2]}
4. Bb5 {[%clk 0:04:46.5]} 4... a6 {[%clk 0:04:43.2]} 5. Bxc6+ {[%clk 0:04:43.5]}
5... bxc6 {[%clk 0:04:41.6]} 6. Ne5 {[%clk 0:04:42.2]} 6... e6 {[%clk
0:04:25.6]} 7. Nxc6 {[%clk 0:04:40]} 7... Qd6 {[%clk 0:04:09.2]} 8. Ne5 {[%clk
0:04:35.3]} 8... Be7 {[%clk 0:04:00.6]} 9. Nd2 {[%clk 0:04:27.5]} 9... O-O
{[%clk 0:03:58.2]} 10. O-O {[%clk 0:04:25.6]} 10... Nd7 {[%clk 0:03:52.8]} 11.
f4 {[%clk 0:04:15]} 11... f6 {[%clk 0:03:44.1]} 12. Nxd7 {[%clk 0:04:07.9]}
12... Bxd7 {[%clk 0:03:40.8]} 13. Rf3 {[%clk 0:04:06.3]} 13... e5 {[%clk
0:03:34.9]} 14. fxe5 {[%clk 0:04:04.3]} 14... fxe5 {[%clk 0:03:27.2]} 15. dxe5
{[%clk 0:04:01.2]} 15... Qxe5 {[%clk 0:03:21.6]} 16. Rxf8+ {[%clk 0:03:56.9]}
16... Rxf8 {[%clk 0:03:19.8]} 17. Nf3 {[%clk 0:03:55.7]} 17... Qf6 {[%clk
0:02:56.7]} 18. Qxd5+ {[%clk 0:03:51.7]} 18... Be6 {[%clk 0:02:52.4]} 19. Qd4
{[%clk 0:03:46.6]} 19... Qxd4 {[%clk 0:02:36.6]} 20. exd4 {[%clk 0:03:45]} 20...
Bg4 {[%clk 0:02:21.5]} 21. Ne5 {[%clk 0:03:40.8]} 21... Be2 {[%clk 0:02:12.9]}
22. Be3 {[%clk 0:03:33.6]} 22... Re8 {[%clk 0:01:57]} 23. Re1 {[%clk 0:03:27.5]}
23... Bb5 {[%clk 0:01:49.4]} 24. c4 {[%clk 0:03:25.4]} 24... Bb4 {[%clk
0:01:26.9]} 25. Rf1 {[%clk 0:03:15]} 25... Bxc4 {[%clk 0:01:23.5]} 26. Nxc4
{[%clk 0:03:13.3]} 26... a5 {[%clk 0:01:15.1]} 27. Ne5 {[%clk 0:03:06.5]} 27...
c5 {[%clk 0:01:03.9]} 28. a3 {[%clk 0:02:59.2]} 1-0

[Event "Live Chess"]
[Site "Chess.com"]
[Date "2023.05.21"]
[Round "-"]
[White "Doge_Dandolo"]
[Black "Conradical12"]
[Result "1-0"]
[WhiteElo "1872"]
[BlackElo "1532"]
[TimeControl "300"]
[EndTime "7:49:24 PDT"]
[Termination "Doge_Dandolo won by resignation"]

1. Nf3 {[%clk 0:04:58.9]} 1... Nc6 {[%clk 0:04:58]} 2. e4 {[%clk 0:04:56.3]}
2... e5 {[%clk 0:04:56.4]} 3. Bc4 {[%clk 0:04:54.7]} 3... Nf6 {[%clk 0:04:53.9]}
4. Ng5 {[%clk 0:04:53]} 4... d5 {[%clk 0:04:51.4]} 5. exd5 {[%clk 0:04:50.1]}
5... Na5 {[%clk 0:04:50.7]} 6. Bb5+ {[%clk 0:04:48.5]} 6... c6 {[%clk 0:04:50]}
7. dxc6 {[%clk 0:04:46.7]} 7... bxc6 {[%clk 0:04:49.8]} 8. Qf3 {[%clk
0:04:45.4]} 8... Be7 {[%clk 0:04:45.4]} 9. b3 {[%clk 0:04:41.4]} 9... Bg4 {[%clk
0:04:38.4]} 10. Bxc6+ {[%clk 0:04:36.6]} 10... Nxc6 {[%clk 0:04:35.6]} 11. Qxc6+
{[%clk 0:04:35.5]} 11... Bd7 {[%clk 0:04:35.1]} 12. Qc3 {[%clk 0:04:31.9]} 12...
O-O {[%clk 0:04:32.3]} 13. Bb2 {[%clk 0:04:25.1]} 13... Rc8 {[%clk 0:04:28.6]}
14. Qd3 {[%clk 0:04:19.4]} 14... g6 {[%clk 0:03:58.9]} 15. Nc3 {[%clk
0:04:15.6]} 15... Ng4 {[%clk 0:03:55.4]} 16. h3 {[%clk 0:04:08.6]} 16... Nxf2
{[%clk 0:03:50.3]} 17. Kxf2 {[%clk 0:04:06.1]} 17... Bxg5 {[%clk 0:03:47.9]} 18.
Ne4 {[%clk 0:04:02.6]} 18... Bf5 {[%clk 0:03:41.1]} 19. Rhe1 {[%clk 0:03:58.2]}
19... Qxd3 {[%clk 0:03:32.5]} 20. cxd3 {[%clk 0:03:56.9]} 20... Bxe4 {[%clk
0:03:29.5]} 21. dxe4 {[%clk 0:03:53.7]} 21... Bxd2 {[%clk 0:03:27.9]} 22. Red1
{[%clk 0:03:51.6]} 22... Bh6 {[%clk 0:03:23.2]} 23. Bxe5 {[%clk 0:03:48.5]}
23... f6 {[%clk 0:03:19.9]} 24. Bd6 {[%clk 0:03:40.5]} 24... Rfd8 {[%clk
0:03:14.9]} 25. Rd5 {[%clk 0:03:33.9]} 25... Rc2+ {[%clk 0:03:06]} 26. Kf3
{[%clk 0:03:31.3]} 26... Rc3+ {[%clk 0:03:02.7]} 27. Ke2 {[%clk 0:03:26.5]}
27... f5 {[%clk 0:02:58.2]} 28. e5 {[%clk 0:03:18.6]} 28... Re3+ {[%clk
0:02:51.3]} 29. Kf2 {[%clk 0:03:17.3]} 29... Re4 {[%clk 0:02:43.6]} 30. Rad1
{[%clk 0:03:12.9]} 30... Be3+ {[%clk 0:02:41.4]} 31. Kf1 {[%clk 0:03:09.5]}
31... Rf4+ {[%clk 0:02:35.1]} 32. Ke2 {[%clk 0:03:06.9]} 32... Bb6 {[%clk
0:02:32]} 33. e6 {[%clk 0:03:02.6]} 33... Re4+ {[%clk 0:02:28.3]} 34. Kf1 {[%clk
0:02:54.7]} 34... Rxe6 {[%clk 0:02:25.4]} 35. a4 {[%clk 0:02:45.2]} 35... a5
{[%clk 0:02:09.7]} 36. Bc5 {[%clk 0:02:33.1]} 36... Rxd5 {[%clk 0:01:45.9]} 37.
Rxd5 {[%clk 0:02:31.6]} 37... Bxc5 {[%clk 0:01:44.6]} 38. Rxc5 {[%clk
0:02:30.3]} 38... Re3 {[%clk 0:01:44.1]} 39. Rxa5 {[%clk 0:02:28]} 39... Rxb3
{[%clk 0:01:42.6]} 40. Ra7 {[%clk 0:02:27]} 40... Ra3 {[%clk 0:01:41.4]} 41. a5
{[%clk 0:02:26]} 41... h6 {[%clk 0:01:37.9]} 42. Kf2 {[%clk 0:02:23.1]} 42...
Kf8 {[%clk 0:01:34.4]} 43. a6 {[%clk 0:02:16.6]} 43... Ke8 {[%clk 0:01:29.7]}
44. Ke2 {[%clk 0:02:14.1]} 44... Kd8 {[%clk 0:01:28.1]} 45. Ra8+ {[%clk
0:02:09.2]} 45... Kc7 {[%clk 0:01:26.3]} 46. a7 {[%clk 0:02:08.5]} 46... Kb7
{[%clk 0:01:23.5]} 47. Rh8 {[%clk 0:02:07.6]} 47... h5 {[%clk 0:01:14.1]} 48. h4
{[%clk 0:02:05.8]} 48... Rxa7 {[%clk 0:01:09.7]} 49. Rh7+ {[%clk 0:02:02.9]}
49... Kb6 {[%clk 0:01:08]} 50. Rxa7 {[%clk 0:02:01.7]} 50... Kxa7 {[%clk
0:01:07.7]} 51. Ke3 {[%clk 0:02:01.3]} 51... Kb7 {[%clk 0:01:07.2]} 52. Kf4
{[%clk 0:02:01]} 52... Kc6 {[%clk 0:01:05.8]} 53. Kg5 {[%clk 0:02:00.5]} 53...
Kd5 {[%clk 0:01:03.4]} 54. Kxg6 {[%clk 0:01:59.9]} 54... Ke5 {[%clk 0:01:01.3]}
55. Kxh5 {[%clk 0:01:59.3]} 55... Kf6 {[%clk 0:01:00.9]} 56. g3 {[%clk
0:01:55.8]} 56... Kg7 {[%clk 0:00:56.1]} 57. Kg5 {[%clk 0:01:54.8]} 57... Kf7
{[%clk 0:00:54.8]} 58. Kxf5 {[%clk 0:01:53.5]} 58... Kg7 {[%clk 0:00:54]} 59. g4
{[%clk 0:01:52.3]} 59... Kf7 {[%clk 0:00:52.9]} 60. h5 {[%clk 0:01:51.3]} 60...
Kg7 {[%clk 0:00:51.6]} 61. g5 {[%clk 0:01:50.5]} 61... Kh8 {[%clk 0:00:50.7]}
62. h6 {[%clk 0:01:49.3]} 62... Kg8 {[%clk 0:00:49.3]} 63. Kg6 {[%clk
0:01:47.9]} 63... Kh8 {[%clk 0:00:48.3]} 64. Kf6 {[%clk 0:01:43.7]} 64... Kg8
{[%clk 0:00:47.3]} 65. g6 {[%clk 0:01:40.7]} 65... Kh8 {[%clk 0:00:46.3]} 66.
g7+ {[%clk 0:01:39.1]} 66... Kg8 {[%clk 0:00:45.2]} 67. h7+ {[%clk 0:01:34.1]}
67... Kxh7 {[%clk 0:00:44.1]} 68. Kf7 {[%clk 0:01:33.6]} 1-0

[Event "Live Chess"]
[Site "Chess.com"]
[Date "2023.05.21"]
[Round "-"]
[White "TheSmoulderingMaster"]
[Black "luckywookie"]
[Result "1-0"]
[WhiteElo "1671"]
[BlackElo "811"]
[TimeControl "300"]
[EndTime "7:49:30 PDT"]
[Termination "TheSmoulderingMaster won by checkmate"]

1. e4 {[%clk 0:04:58.3]} 1... c6 {[%clk 0:04:57.7]} 2. d4 {[%clk 0:04:57]} 2...
d5 {[%clk 0:04:56.8]} 3. Nc3 {[%clk 0:04:54.5]} 3... Nf6 {[%clk 0:04:47.4]} 4.
e5 {[%clk 0:04:51.9]} 4... Ne4 {[%clk 0:04:46.5]} 5. Nxe4 {[%clk 0:04:50.6]}
5... dxe4 {[%clk 0:04:45.7]} 6. Ne2 {[%clk 0:04:47]} 6... Bg4 {[%clk 0:04:37.1]}
7. Qd2 {[%clk 0:04:43.2]} 7... e6 {[%clk 0:04:29.2]} 8. Qe3 {[%clk 0:04:41.2]}
8... Nd7 {[%clk 0:03:57.6]} 9. Nc3 {[%clk 0:04:38.6]} 9... c5 {[%clk 0:03:51.4]}
10. Nxe4 {[%clk 0:04:33.9]} 10... cxd4 {[%clk 0:03:47.1]} 11. Qxd4 {[%clk
0:04:33.1]} 11... Bc5 {[%clk 0:03:35]} 12. Nxc5 {[%clk 0:04:30.3]} 12... Nxc5
{[%clk 0:03:34.2]} 13. Qxg4 {[%clk 0:04:25.4]} 13... Qa5+ {[%clk 0:03:23.6]} 14.
Bd2 {[%clk 0:04:22.4]} 14... Qc7 {[%clk 0:03:07.1]} 15. Qxg7 {[%clk 0:04:16]}
15... O-O-O {[%clk 0:03:04.2]} 16. O-O-O {[%clk 0:04:12.1]} 16... Rd5 {[%clk
0:02:52.2]} 17. Bc3 {[%clk 0:04:05]} 17... Rhd8 {[%clk 0:02:49.4]} 18. Be2
{[%clk 0:03:58.3]} 18... Ne4 {[%clk 0:02:39.5]} 19. Bf3 {[%clk 0:03:51.1]} 19...
Nxc3 {[%clk 0:02:34]} 20. Bxd5 {[%clk 0:03:45.8]} 20... Nxd5 {[%clk 0:02:32.6]}
21. Rd3 {[%clk 0:03:38.4]} 21... f6 {[%clk 0:02:17.5]} 22. exf6 {[%clk
0:03:33.4]} 22... Qxg7 {[%clk 0:02:14.4]} 23. fxg7 {[%clk 0:03:32.4]} 23... Rg8
{[%clk 0:02:13]} 24. Rg3 {[%clk 0:03:29.8]} 24... Ne7 {[%clk 0:02:04.9]} 25. Re1
{[%clk 0:03:27.2]} 25... Nf5 {[%clk 0:02:03.6]} 26. Rg5 {[%clk 0:03:23.6]} 26...
Nxg7 {[%clk 0:02:01.2]} 27. Rxe6 {[%clk 0:03:20.7]} 27... Nxe6 {[%clk
0:01:58.4]} 28. Rxg8+ {[%clk 0:03:19.4]} 28... Kd7 {[%clk 0:01:57.7]} 29. Kd2
{[%clk 0:03:17.2]} 29... Kd6 {[%clk 0:01:55.7]} 30. Kd3 {[%clk 0:03:12.3]} 30...
Ke5 {[%clk 0:01:53.6]} 31. Re8 {[%clk 0:03:09.7]} 31... a5 {[%clk 0:01:50.9]}
32. Rxe6+ {[%clk 0:03:08.4]} 32... Kxe6 {[%clk 0:01:49]} 33. Kc4 {[%clk
0:03:07.5]} 33... Ke5 {[%clk 0:01:45.4]} 34. Kb5 {[%clk 0:03:06.5]} 34... Kd5
{[%clk 0:01:43.6]} 35. Kxa5 {[%clk 0:03:05.9]} 35... Kc5 {[%clk 0:01:42.9]} 36.
b4+ {[%clk 0:03:02.9]} 36... Kc4 {[%clk 0:01:41.2]} 37. b5 {[%clk 0:03:01]}
37... Kc3 {[%clk 0:01:38.8]} 38. Kb6 {[%clk 0:02:59.7]} 38... Kxc2 {[%clk
0:01:38.2]} 39. Kxb7 {[%clk 0:02:59.1]} 39... Kd2 {[%clk 0:01:36.8]} 40. Kc7
{[%clk 0:02:58.4]} 40... Ke2 {[%clk 0:01:36.7]} 41. b6 {[%clk 0:02:58]} 41...
Kxf2 {[%clk 0:01:36.3]} 42. b7 {[%clk 0:02:57.9]} 42... Kxg2 {[%clk 0:01:35.8]}
43. b8=Q {[%clk 0:02:57.8]} 43... Kxh2 {[%clk 0:01:35.4]} 44. a4 {[%clk
0:02:54.2]} 44... Kg2 {[%clk 0:01:35.3]} 45. a5 {[%clk 0:02:54.1]} 45... h5
{[%clk 0:01:35]} 46. a6 {[%clk 0:02:54]} 46... h4 {[%clk 0:01:34.2]} 47. a7
{[%clk 0:02:53.9]} 47... h3 {[%clk 0:01:33.7]} 48. a8=Q+ {[%clk 0:02:53.8]}
48... Kg3 {[%clk 0:01:32]} 49. Qb3+ {[%clk 0:02:51.9]} 49... Kf2 {[%clk
0:01:29.8]} 50. Qaa2+ {[%clk 0:02:49.5]} 50... Ke1 {[%clk 0:01:28.8]} 51. Qbb1#
{[%clk 0:02:48.6]} 1-0

[Event "Live Chess"]
[Site "Chess.com"]
[Date "2023.05.21"]
[Round "-"]
[White "Vitalii18a"]
[Black "GEMdzq"]
[Result "0-1"]
[WhiteElo "1128"]
[BlackElo "2227"]
[TimeControl "300"]
[EndTime "7:49:35 PDT"]
[Termination "GEMdzq won by resignation"]

1. e4 {[%clk 0:04:58]} 1... d6 {[%clk 0:04:59.1]} 2. c3 {[%clk 0:04:55.2]} 2...
Nf6 {[%clk 0:04:59]} 3. Bd3 {[%clk 0:04:52.7]} 3... c5 {[%clk 0:04:57.4]} 4. Bc2
{[%clk 0:04:49.8]} 4... Nc6 {[%clk 0:04:54.4]} 5. Nf3 {[%clk 0:04:47.8]} 5... e5
{[%clk 0:04:50.7]} 6. O-O {[%clk 0:04:42.8]} 6... Be7 {[%clk 0:04:48.4]} 7. Re1
{[%clk 0:04:37.3]} 7... Bg4 {[%clk 0:04:45.9]} 8. h3 {[%clk 0:04:35.6]} 8... Bh5
{[%clk 0:04:45.1]} 9. g4 {[%clk 0:04:34.4]} 9... Bg6 {[%clk 0:04:44.3]} 10. d4
{[%clk 0:04:32.8]} 10... cxd4 {[%clk 0:04:39.7]} 11. cxd4 {[%clk 0:04:31.7]}
11... O-O {[%clk 0:04:36]} 12. dxe5 {[%clk 0:04:25.7]} 12... dxe5 {[%clk
0:04:32.6]} 13. Qxd8 {[%clk 0:04:17.5]} 13... Rfxd8 {[%clk 0:04:32.5]} 14. Nc3
{[%clk 0:04:09.4]} 14... Nd4 {[%clk 0:04:26.2]} 15. Nxd4 {[%clk 0:03:39]} 15...
exd4 {[%clk 0:04:26.1]} 16. Ne2 {[%clk 0:03:34.1]} 16... d3 {[%clk 0:04:25.4]}
17. Nf4 {[%clk 0:03:29.1]} 17... dxc2 {[%clk 0:04:22.7]} 18. Nxg6 {[%clk
0:03:27]} 18... hxg6 {[%clk 0:04:21.1]} 19. Bg5 {[%clk 0:03:23.6]} 19... Bb4
{[%clk 0:04:15.6]} 20. Rec1 {[%clk 0:03:15.5]} 20... Rdc8 {[%clk 0:04:01]} 21.
a3 {[%clk 0:03:09.2]} 21... Nxe4 {[%clk 0:03:55.6]} 22. Be3 {[%clk 0:02:54.8]}
22... Bd2 {[%clk 0:03:51.9]} 23. Bxd2 {[%clk 0:02:51.4]} 23... Nxd2 {[%clk
0:03:51.8]} 24. a4 {[%clk 0:02:39.1]} 24... Nb3 {[%clk 0:03:50.8]} 25. Rxc2
{[%clk 0:02:28.5]} 25... Rxc2 {[%clk 0:03:48.5]} 26. Ra3 {[%clk 0:02:28.4]}
26... Nc5 {[%clk 0:03:44.5]} 27. Re3 {[%clk 0:02:21.2]} 27... Rd8 {[%clk
0:03:42.6]} 28. b4 {[%clk 0:02:19.5]} 28... Nd3 {[%clk 0:03:39.1]} 29. b5 {[%clk
0:02:16.5]} 29... Nxf2 {[%clk 0:03:38.2]} 30. Kg2 {[%clk 0:02:00.3]} 30... Nxg4+
{[%clk 0:03:36.6]} 31. Kf3 {[%clk 0:01:57.2]} 31... Nxe3 {[%clk 0:03:35.9]} 32.
Kxe3 {[%clk 0:01:57.1]} 0-1

[Event "Live Chess"]
[Site "Chess.com"]
[Date "2023.05.21"]
[Round "-"]
[White "raminguy"]
[Black "Crowded_House"]
[Result "1-0"]
[WhiteElo "1952"]
[BlackElo "1608"]
[TimeControl "300"]
[EndTime "7:49:39 PDT"]
[Termination "raminguy won by checkmate"]

1. d4 {[%clk 0:04:59.1]} 1... e6 {[%clk 0:04:59]} 2. Nc3 {[%clk 0:04:57.8]} 2...
d5 {[%clk 0:04:58.2]} 3. Bf4 {[%clk 0:04:57.1]} 3... Bd6 {[%clk 0:04:56.1]} 4.
e3 {[%clk 0:04:54.9]} 4... Bxf4 {[%clk 0:04:55]} 5. exf4 {[%clk 0:04:54.7]} 5...
Nf6 {[%clk 0:04:53.6]} 6. Nf3 {[%clk 0:04:53]} 6... a6 {[%clk 0:04:52.8]} 7. Ne5
{[%clk 0:04:52.4]} 7... Nbd7 {[%clk 0:04:50.6]} 8. Bd3 {[%clk 0:04:51.7]} 8...
O-O {[%clk 0:04:46.3]} 9. g4 {[%clk 0:04:50.1]} 9... Nxe5 {[%clk 0:04:39.1]} 10.
fxe5 {[%clk 0:04:49.1]} 10... Ne4 {[%clk 0:04:38.2]} 11. Nxe4 {[%clk 0:04:47.4]}
11... dxe4 {[%clk 0:04:37.9]} 12. Bxe4 {[%clk 0:04:47.2]} 12... c6 {[%clk
0:04:33.5]} 13. c3 {[%clk 0:04:42.6]} 13... Bd7 {[%clk 0:04:26.6]} 14. Bc2
{[%clk 0:04:40.9]} 14... b6 {[%clk 0:04:21.7]} 15. Qd3 {[%clk 0:04:39.4]} 15...
g6 {[%clk 0:04:20]} 16. Qe3 {[%clk 0:04:35.4]} 16... Rc8 {[%clk 0:04:12.3]} 17.
h4 {[%clk 0:04:33.9]} 17... c5 {[%clk 0:04:11.6]} 18. h5 {[%clk 0:04:28.5]}
18... cxd4 {[%clk 0:04:10.1]} 19. Qh6 {[%clk 0:04:27.6]} 19... Qe7 {[%clk
0:03:50.4]} 20. hxg6 {[%clk 0:04:25.7]} 20... fxg6 {[%clk 0:03:46.5]} 21. Bxg6
{[%clk 0:04:24.3]} 21... Be8 {[%clk 0:03:27.2]} 22. Bxh7+ {[%clk 0:04:20.7]}
22... Kh8 {[%clk 0:03:23.3]} 23. Bg6+ {[%clk 0:04:16.8]} 23... Kg8 {[%clk
0:03:19.9]} 24. Qh8# {[%clk 0:04:14.6]} 1-0